[Event "*** Titled Tuesday Blitz"]
[Site "Chess.com"]
[Date "2020.12.29"]
[Round "3"]
[White "tsaruk_maks"]
[Black "Loy_Konstantin"]
[Result "1-0"]
[WhiteElo "2595"]
[BlackElo "2400"]
[TimeControl "180+1"]
[EndTime "10:28:50 PST"]
[Termination "tsaruk_maks won on time"]

1. e4 {[%clk 0:03:00.9]} 1... c5 {[%clk 0:02:59.6]} 2. Nf3 {[%clk 0:03:00.9]}
2... d6 {[%clk 0:02:59]} 3. d4 {[%clk 0:03:01.5]} 3... cxd4 {[%clk 0:02:58.7]}
4. Nxd4 {[%clk 0:03:02.4]} 4... Nf6 {[%clk 0:02:58.5]} 5. Nc3 {[%clk 0:03:03.1]}
5... g6 {[%clk 0:02:58.4]} 6. Be3 {[%clk 0:03:01.5]} 6... Bg7 {[%clk 0:02:58.3]}
7. f3 {[%clk 0:03:01.5]} 7... O-O {[%clk 0:02:58]} 8. Qd2 {[%clk 0:03:00.5]}
8... Nc6 {[%clk 0:02:58.6]} 9. g4 {[%clk 0:03:01]} 9... Bd7 {[%clk 0:02:58.1]}
10. O-O-O {[%clk 0:02:58.4]} 10... Rc8 {[%clk 0:02:58.5]} 11. h4 {[%clk
0:02:55.9]} 11... Ne5 {[%clk 0:02:59]} 12. g5 {[%clk 0:02:38]} 12... Nh5 {[%clk
0:02:54.5]} 13. f4 {[%clk 0:02:38.3]} 13... Nc4 {[%clk 0:02:29.5]} 14. Bxc4
{[%clk 0:02:38.7]} 14... Rxc4 {[%clk 0:02:30.2]} 15. Kb1 {[%clk 0:02:34.1]}
15... Nxf4 {[%clk 0:01:21]} 16. b3 {[%clk 0:02:33.8]} 16... Rxc3 {[%clk
0:01:21.1]} 17. Qxc3 {[%clk 0:02:33.8]} 17... Ne2 {[%clk 0:01:10.7]} 18. Qd2
{[%clk 0:02:23.7]} 18... Ng3 {[%clk 0:01:09.7]} 19. Rhe1 {[%clk 0:02:11.4]}
19... Nxe4 {[%clk 0:01:09.9]} 20. Qd3 {[%clk 0:02:11.5]} 20... Nc5 {[%clk
0:00:49.6]} 21. Qf1 {[%clk 0:02:11.7]} 21... Bg4 {[%clk 0:00:45.4]} 22. Rd2
{[%clk 0:02:01.6]} 22... Qa5 {[%clk 0:00:37.9]} 23. Qg2 {[%clk 0:00:44.1]} 23...
Be6 {[%clk 0:00:30.1]} 24. Rdd1 {[%clk 0:00:23.8]} 24... Qc3 {[%clk 0:00:20.6]}
25. Bg1 {[%clk 0:00:03.4]} 25... a5 {[%clk 0:00:15.5]} 26. Re3 {[%clk
0:00:03.7]} 26... Qb4 {[%clk 0:00:14.1]} 27. Rg3 {[%clk 0:00:02.7]} 27... a4
{[%clk 0:00:12.5]} 28. c3 {[%clk 0:00:03.3]} 28... Qb6 {[%clk 0:00:11.1]} 29. b4
{[%clk 0:00:04.2]} 29... Nd7 {[%clk 0:00:04.4]} 30. Nxe6 {[%clk 0:00:04.4]}
30... Qb5 {[%clk 0:00:03.4]} 31. Nxf8 {[%clk 0:00:04.4]} 31... Nxf8 {[%clk
0:00:04.2]} 32. Rgd3 {[%clk 0:00:04.4]} 32... Ne6 {[%clk 0:00:03.9]} 33. Qd5
{[%clk 0:00:05]} 33... Qe8 {[%clk 0:00:03.2]} 34. Bd4 {[%clk 0:00:04.2]} 34...
Nf4 {[%clk 0:00:03.2]} 35. Qe4 {[%clk 0:00:04.3]} 35... Nxd3 {[%clk 0:00:03.3]}
36. Bxg7 {[%clk 0:00:04.4]} 36... Nf2 {[%clk 0:00:02.2]} 37. Qf3 {[%clk
0:00:03.4]} 37... Nxd1 {[%clk 0:00:02.2]} 38. Bd4 {[%clk 0:00:04.3]} 38... e5
{[%clk 0:00:01.4]} 39. Bg1 {[%clk 0:00:04.9]} 1-0

[Event "*** Titled Tuesday Blitz"]
[Site "Chess.com"]
[Date "2020.12.29"]
[Round "3"]
[White "MashaFromRussia"]
[Black "stephan97"]
[Result "1-0"]
[WhiteElo "2399"]
[BlackElo "2228"]
[TimeControl "180+1"]
[EndTime "10:28:51 PST"]
[Termination "MashaFromRussia won by resignation"]

1. d4 {[%clk 0:03:00.9]} 1... d5 {[%clk 0:02:59.6]} 2. c4 {[%clk 0:03:00.8]}
2... e6 {[%clk 0:02:59.9]} 3. Nf3 {[%clk 0:03:00.9]} 3... Nf6 {[%clk 0:02:59.9]}
4. g3 {[%clk 0:02:59.2]} 4... Be7 {[%clk 0:02:58.9]} 5. Bg2 {[%clk 0:02:58.9]}
5... O-O {[%clk 0:02:59.2]} 6. O-O {[%clk 0:02:59]} 6... dxc4 {[%clk 0:02:59.6]}
7. Ne5 {[%clk 0:02:58.3]} 7... Nc6 {[%clk 0:02:55.2]} 8. Nxc6 {[%clk 0:02:58.4]}
8... bxc6 {[%clk 0:02:55.3]} 9. e3 {[%clk 0:02:59.3]} 9... Ba6 {[%clk
0:02:47.4]} 10. Nc3 {[%clk 0:02:57.7]} 10... Rb8 {[%clk 0:02:45.1]} 11. Qa4
{[%clk 0:02:56.6]} 11... Bb5 {[%clk 0:02:36.9]} 12. Qa5 {[%clk 0:02:56.5]} 12...
Rb6 {[%clk 0:02:30.6]} 13. Nxb5 {[%clk 0:02:16.6]} 13... cxb5 {[%clk 0:02:29.4]}
14. Qxa7 {[%clk 0:02:17]} 14... Nd5 {[%clk 0:02:27.4]} 15. e4 {[%clk 0:02:12.1]}
15... Nb4 {[%clk 0:02:25.3]} 16. Be3 {[%clk 0:02:11.9]} 16... Ra6 {[%clk
0:01:57]} 17. Qb7 {[%clk 0:02:11.2]} 17... Qb8 {[%clk 0:01:46.3]} 18. Qxb8
{[%clk 0:02:03.1]} 18... Rxb8 {[%clk 0:01:45.6]} 19. a3 {[%clk 0:02:04]} 19...
Nc2 {[%clk 0:01:44.2]} 20. Rac1 {[%clk 0:02:03.1]} 20... Nxe3 {[%clk 0:01:43.9]}
21. fxe3 {[%clk 0:02:04]} 21... f6 {[%clk 0:01:36.7]} 22. Kf2 {[%clk 0:01:54.9]}
22... Kf7 {[%clk 0:01:31.3]} 23. Kf3 {[%clk 0:01:54.3]} 23... Rd8 {[%clk
0:01:28.1]} 24. Ke2 {[%clk 0:01:50.8]} 24... c5 {[%clk 0:01:13.6]} 25. d5 {[%clk
0:01:46.9]} 25... e5 {[%clk 0:01:11.5]} 26. Bh3 {[%clk 0:01:46.2]} 26... Rb8
{[%clk 0:01:05.7]} 27. Be6+ {[%clk 0:01:45]} 27... Kf8 {[%clk 0:01:06]} 28. g4
{[%clk 0:01:39.5]} 28... b4 {[%clk 0:01:03.1]} 29. d6 {[%clk 0:00:54]} 29...
Rxd6 {[%clk 0:00:54.1]} 30. Bxc4 {[%clk 0:00:52.7]} 30... bxa3 {[%clk
0:00:54.3]} 31. bxa3 {[%clk 0:00:53.6]} 31... Rb2+ {[%clk 0:00:54.1]} 32. Kf3
{[%clk 0:00:52.4]} 32... Rxh2 {[%clk 0:00:46.8]} 33. Rb1 {[%clk 0:00:47]} 33...
Rdd2 {[%clk 0:00:37.2]} 34. Rb8+ {[%clk 0:00:45]} 34... Bd8 {[%clk 0:00:37.3]}
35. Rg1 {[%clk 0:00:31]} 35... g5 {[%clk 0:00:26.5]} 36. a4 {[%clk 0:00:26.3]}
36... Kg7 {[%clk 0:00:21.4]} 37. Rb7+ {[%clk 0:00:24.3]} 37... Kg6 {[%clk
0:00:18.4]} 38. Bf7+ {[%clk 0:00:20.8]} 38... Kh6 {[%clk 0:00:18.7]} 39. Bg8
{[%clk 0:00:21.2]} 39... Kg6 {[%clk 0:00:17.8]} 40. Be6 {[%clk 0:00:17.9]} 40...
Rdf2+ {[%clk 0:00:15.8]} 41. Kg3 {[%clk 0:00:17.6]} 41... Kh6 {[%clk 0:00:13.8]}
42. Bf5 {[%clk 0:00:16.7]} 42... Rxf5 {[%clk 0:00:08.6]} 43. exf5 {[%clk
0:00:17.6]} 43... Rh4 {[%clk 0:00:07.9]} 44. Rd1 {[%clk 0:00:16.4]} 1-0

[Event "*** Titled Tuesday Blitz"]
[Site "Chess.com"]
[Date "2020.12.29"]
[Round "3"]
[White "eightbyeightchess"]
[Black "Legendinunknown"]
[Result "0-1"]
[WhiteElo "2384"]
[BlackElo "2575"]
[TimeControl "180+1"]
[EndTime "10:28:52 PST"]
[Termination "Legendinunknown won by resignation"]

1. e4 {[%clk 0:03:00.9]} 1... c6 {[%clk 0:02:56.5]} 2. d4 {[%clk 0:02:56.5]}
2... d5 {[%clk 0:02:57.4]} 3. e5 {[%clk 0:02:55.6]} 3... Bf5 {[%clk 0:02:55.7]}
4. h4 {[%clk 0:02:43.4]} 4... h5 {[%clk 0:02:51.4]} 5. Bd3 {[%clk 0:02:43.2]}
5... Bxd3 {[%clk 0:02:48.9]} 6. Qxd3 {[%clk 0:02:44.1]} 6... e6 {[%clk
0:02:49.4]} 7. Bg5 {[%clk 0:02:41]} 7... Qb6 {[%clk 0:02:48.7]} 8. Nd2 {[%clk
0:02:40.7]} 8... c5 {[%clk 0:02:48.3]} 9. c4 {[%clk 0:02:40.6]} 9... Nc6 {[%clk
0:02:35.8]} 10. cxd5 {[%clk 0:02:38.7]} 10... exd5 {[%clk 0:02:33.7]} 11. e6
{[%clk 0:02:23.1]} 11... fxe6 {[%clk 0:02:12.4]} 12. Qg6+ {[%clk 0:02:21.9]}
12... Kd7 {[%clk 0:02:12]} 13. Ngf3 {[%clk 0:02:22.8]} 13... Nge7 {[%clk
0:02:06.4]} 14. Qf7 {[%clk 0:02:22.6]} 14... cxd4 {[%clk 0:02:05.7]} 15. O-O
{[%clk 0:02:20.6]} 15... Rd8 {[%clk 0:01:19.5]} 16. Rac1 {[%clk 0:02:06.2]}
16... Kc8 {[%clk 0:01:17.7]} 17. Bxe7 {[%clk 0:02:05.8]} 17... Bxe7 {[%clk
0:01:16.2]} 18. Qxe6+ {[%clk 0:02:06]} 18... Kb8 {[%clk 0:01:15.3]} 19. Rxc6
{[%clk 0:02:04.5]} 19... Qxc6 {[%clk 0:01:07.1]} 20. Qxe7 {[%clk 0:02:04.8]}
20... d3 {[%clk 0:01:03.8]} 21. Ne5 {[%clk 0:01:53.7]} 21... Qc2 {[%clk
0:01:00.4]} 22. Nf7 {[%clk 0:01:39.3]} 22... Rhe8 {[%clk 0:00:42.3]} 23. Qg5
{[%clk 0:01:38.3]} 23... Rd7 {[%clk 0:00:37.9]} 24. Qg3+ {[%clk 0:00:50.4]}
24... Ka8 {[%clk 0:00:34.1]} 25. Ne5 {[%clk 0:00:50.5]} 25... Rde7 {[%clk
0:00:32.6]} 26. Qxd3 {[%clk 0:00:50.3]} 26... Qxb2 {[%clk 0:00:29.1]} 27. Nef3
{[%clk 0:00:48.8]} 27... Qxa2 {[%clk 0:00:28.6]} 28. Kh2 {[%clk 0:00:43.3]}
28... Qa5 {[%clk 0:00:24.3]} 29. Rc1 {[%clk 0:00:39.6]} 29... a6 {[%clk
0:00:20.4]} 30. Nb3 {[%clk 0:00:39.2]} 30... Qb6 {[%clk 0:00:18.6]} 31. Rc5
{[%clk 0:00:28.4]} 31... Qd6+ {[%clk 0:00:16.3]} 32. g3 {[%clk 0:00:28.4]} 32...
Qf6 {[%clk 0:00:15.8]} 33. Rxd5 {[%clk 0:00:26.4]} 33... Re2 {[%clk 0:00:15.6]}
34. Kg2 {[%clk 0:00:23.4]} 34... Rb2 {[%clk 0:00:15.5]} 35. Nbd2 {[%clk
0:00:15.2]} 35... Rb6 {[%clk 0:00:14.7]} 36. Rd7 {[%clk 0:00:12]} 36... Ka7
{[%clk 0:00:13.7]} 37. Nc4 {[%clk 0:00:11.2]} 37... Rc6 {[%clk 0:00:12.3]} 38.
Nfe5 {[%clk 0:00:07.6]} 38... Rxe5 {[%clk 0:00:11.2]} 39. Qd4+ {[%clk
0:00:07.7]} 39... Rec5 {[%clk 0:00:10.1]} 40. Qe3 {[%clk 0:00:05.4]} 40... Qf5
{[%clk 0:00:08.5]} 41. Na5 {[%clk 0:00:02.5]} 41... Qxd7 {[%clk 0:00:07.8]} 42.
Nxc6+ {[%clk 0:00:02.1]} 42... Qxc6+ {[%clk 0:00:08.7]} 43. Kh2 {[%clk
0:00:02.1]} 43... a5 {[%clk 0:00:09.1]} 44. Qe7 {[%clk 0:00:03]} 44... Ka6
{[%clk 0:00:09]} 0-1

[Event "*** Titled Tuesday Blitz"]
[Site "Chess.com"]
[Date "2020.12.29"]
[Round "3"]
[White "Alonmindlin"]
[Black "Alexander_Zubov"]
[Result "1/2-1/2"]
[WhiteElo "2706"]
[BlackElo "2933"]
[TimeControl "180+1"]
[EndTime "10:28:54 PST"]
[Termination "Game drawn by repetition"]

1. d4 {[%clk 0:03:00.9]} 1... Nf6 {[%clk 0:02:59.6]} 2. c4 {[%clk 0:03:00.6]}
2... g6 {[%clk 0:02:59.7]} 3. Nc3 {[%clk 0:02:57.7]} 3... d5 {[%clk 0:02:59.8]}
4. cxd5 {[%clk 0:02:57.4]} 4... Nxd5 {[%clk 0:02:59.3]} 5. g3 {[%clk 0:02:58.3]}
5... Bg7 {[%clk 0:02:56.6]} 6. Bg2 {[%clk 0:02:58.2]} 6... Nb6 {[%clk
0:02:56.4]} 7. Nf3 {[%clk 0:02:57.8]} 7... Nc6 {[%clk 0:02:56.3]} 8. O-O {[%clk
0:02:55.7]} 8... O-O {[%clk 0:02:53.7]} 9. Bf4 {[%clk 0:02:54.9]} 9... Be6
{[%clk 0:02:38.4]} 10. Qc1 {[%clk 0:02:48.1]} 10... Nd5 {[%clk 0:02:25.8]} 11.
Bh6 {[%clk 0:02:44.2]} 11... Nxc3 {[%clk 0:02:25.6]} 12. bxc3 {[%clk 0:02:42.4]}
12... Na5 {[%clk 0:02:12.5]} 13. Bxg7 {[%clk 0:02:37.9]} 13... Kxg7 {[%clk
0:02:12.4]} 14. Nd2 {[%clk 0:02:25.8]} 14... c5 {[%clk 0:01:59.8]} 15. e3 {[%clk
0:02:18.6]} 15... Rc8 {[%clk 0:01:55.3]} 16. Qb2 {[%clk 0:02:16.5]} 16... Kg8
{[%clk 0:01:52.6]} 17. Rfd1 {[%clk 0:02:06.8]} 17... cxd4 {[%clk 0:01:42.2]} 18.
cxd4 {[%clk 0:02:05.7]} 18... b6 {[%clk 0:01:18.3]} 19. Rac1 {[%clk 0:02:00.2]}
19... Qd7 {[%clk 0:01:12.3]} 20. h4 {[%clk 0:01:52.2]} 20... Nc4 {[%clk
0:01:02.5]} 21. Nxc4 {[%clk 0:01:51.2]} 21... Bxc4 {[%clk 0:01:02.3]} 22. a3
{[%clk 0:01:51]} 22... Qd6 {[%clk 0:00:44.7]} 23. Rc3 {[%clk 0:01:42.1]} 23...
Rc7 {[%clk 0:00:39.9]} 24. Rdc1 {[%clk 0:01:40.8]} 24... Rfc8 {[%clk 0:00:39.8]}
25. h5 {[%clk 0:01:38.3]} 25... gxh5 {[%clk 0:00:38.9]} 26. Qd2 {[%clk
0:01:31.8]} 26... h4 {[%clk 0:00:37.6]} 27. gxh4 {[%clk 0:01:31.2]} 27... b5
{[%clk 0:00:36.3]} 28. e4 {[%clk 0:01:31]} 28... Kh8 {[%clk 0:00:36.3]} 29. e5
{[%clk 0:01:30.7]} 29... Qe6 {[%clk 0:00:22.5]} 30. Rg3 {[%clk 0:01:25.1]} 30...
Rg8 {[%clk 0:00:21.1]} 31. Qf4 {[%clk 0:01:16.5]} 31... Rcc8 {[%clk 0:00:20.2]}
32. d5 {[%clk 0:01:11.6]} 32... Qb6 {[%clk 0:00:03.7]} 33. Kh2 {[%clk
0:01:00.7]} 33... Rxg3 {[%clk 0:00:02.9]} 34. fxg3 {[%clk 0:01:01.6]} 34... Qg6
{[%clk 0:00:03.1]} 35. Be4 {[%clk 0:00:59.4]} 35... Qg7 {[%clk 0:00:03.7]} 36.
Rc2 {[%clk 0:00:52.7]} 36... Rd8 {[%clk 0:00:03.7]} 37. Rd2 {[%clk 0:00:50.5]}
37... a5 {[%clk 0:00:04.3]} 38. d6 {[%clk 0:00:50.9]} 38... exd6 {[%clk
0:00:04.6]} 39. exd6 {[%clk 0:00:51.3]} 39... Be6 {[%clk 0:00:05.5]} 40. h5
{[%clk 0:00:50]} 40... h6 {[%clk 0:00:05.1]} 41. Bf5 {[%clk 0:00:37.7]} 41...
Qf6 {[%clk 0:00:04.3]} 42. g4 {[%clk 0:00:35.1]} 42... Bxf5 {[%clk 0:00:04.2]}
43. gxf5 {[%clk 0:00:36]} 43... b4 {[%clk 0:00:03.7]} 44. axb4 {[%clk
0:00:35.9]} 44... axb4 {[%clk 0:00:04.6]} 45. Qxb4 {[%clk 0:00:36.4]} 45... Qe5+
{[%clk 0:00:05.1]} 46. Kh1 {[%clk 0:00:34.9]} 46... Qe1+ {[%clk 0:00:04.4]} 47.
Kh2 {[%clk 0:00:33.9]} 47... Qe5+ {[%clk 0:00:04.6]} 48. Kh1 {[%clk 0:00:32.5]}
48... Qe1+ {[%clk 0:00:02.8]} 49. Kh2 {[%clk 0:00:32.8]} 49... Qe5+ {[%clk
0:00:02.3]} 1/2-1/2

[Event "*** Titled Tuesday Blitz"]
[Site "Chess.com"]
[Date "2020.12.29"]
[Round "3"]
[White "Alomaterapia"]
[Black "arna"]
[Result "1-0"]
[WhiteElo "2483"]
[BlackElo "2138"]
[TimeControl "180+1"]
[EndTime "10:28:55 PST"]
[Termination "Alomaterapia won by checkmate"]

1. e4 {[%clk 0:03:00.9]} 1... e6 {[%clk 0:02:59.3]} 2. d4 {[%clk 0:03:00.7]}
2... d5 {[%clk 0:02:59.9]} 3. e5 {[%clk 0:03:01.2]} 3... c5 {[%clk 0:02:59.5]}
4. c3 {[%clk 0:03:01.8]} 4... Nc6 {[%clk 0:02:59.3]} 5. Nf3 {[%clk 0:03:02.4]}
5... Qb6 {[%clk 0:02:59]} 6. a3 {[%clk 0:03:02.9]} 6... c4 {[%clk 0:02:59.3]} 7.
Nbd2 {[%clk 0:03:01.5]} 7... Na5 {[%clk 0:02:59.6]} 8. Be2 {[%clk 0:02:57.1]}
8... Bd7 {[%clk 0:02:59.6]} 9. O-O {[%clk 0:02:55.7]} 9... Ne7 {[%clk
0:02:59.5]} 10. h4 {[%clk 0:02:45.9]} 10... Qc7 {[%clk 0:02:57.9]} 11. h5 {[%clk
0:02:40.6]} 11... h6 {[%clk 0:02:58.4]} 12. Nh2 {[%clk 0:02:25.2]} 12... Nc8
{[%clk 0:02:54.8]} 13. f4 {[%clk 0:02:17]} 13... Nb6 {[%clk 0:02:51.1]} 14. g4
{[%clk 0:02:16.1]} 14... Be7 {[%clk 0:02:50.2]} 15. Rf2 {[%clk 0:02:09.1]} 15...
O-O-O {[%clk 0:02:44]} 16. Qf1 {[%clk 0:02:03.8]} 16... g6 {[%clk 0:02:22.6]}
17. Qh3 {[%clk 0:02:00.8]} 17... Rdg8 {[%clk 0:02:18.4]} 18. Bd1 {[%clk
0:01:57.4]} 18... Qd8 {[%clk 0:02:08.1]} 19. Ndf1 {[%clk 0:01:48.2]} 19... Kb8
{[%clk 0:01:50.5]} 20. Kh1 {[%clk 0:01:45.9]} 20... gxh5 {[%clk 0:01:35.3]} 21.
Qxh5 {[%clk 0:01:43.9]} 21... f6 {[%clk 0:01:34.4]} 22. Be3 {[%clk 0:01:38.4]}
22... Qf8 {[%clk 0:01:24.3]} 23. a4 {[%clk 0:01:26.1]} 23... Qg7 {[%clk
0:01:07]} 24. Bc2 {[%clk 0:01:08.4]} 24... Be8 {[%clk 0:01:02.8]} 25. Qh3 {[%clk
0:01:04.9]} 25... h5 {[%clk 0:00:55.4]} 26. exf6 {[%clk 0:00:56.5]} 26... hxg4
{[%clk 0:00:51.8]} 27. fxg7 {[%clk 0:00:44]} 27... Rxh3 {[%clk 0:00:51.1]} 28.
f5 {[%clk 0:00:35.3]} 28... Bd6 {[%clk 0:00:32.2]} 29. f6 {[%clk 0:00:28.1]}
29... Bf7 {[%clk 0:00:32.5]} 30. Kg2 {[%clk 0:00:17.9]} 30... Rxe3 {[%clk
0:00:09.4]} 31. Nxe3 {[%clk 0:00:17.8]} 31... g3 {[%clk 0:00:10.3]} 32. Rf3
{[%clk 0:00:13.5]} 32... gxh2 {[%clk 0:00:10.5]} 33. Rh3 {[%clk 0:00:13.9]}
33... Nd7 {[%clk 0:00:08.8]} 34. Ng4 {[%clk 0:00:13.2]} 34... Nc6 {[%clk
0:00:05.9]} 35. Rh8 {[%clk 0:00:11.7]} 35... Nd8 {[%clk 0:00:04.3]} 36. Rf1
{[%clk 0:00:10.6]} 36... Kc7 {[%clk 0:00:03.6]} 37. Nh6 {[%clk 0:00:10.3]} 37...
e5 {[%clk 0:00:01.8]} 38. Nxf7 {[%clk 0:00:09.7]} 38... Rxg7+ {[%clk 0:00:02.3]}
39. fxg7 {[%clk 0:00:09.8]} 39... Nxf7 {[%clk 0:00:02.7]} 40. Rxf7 {[%clk
0:00:09.6]} 40... h1=Q+ {[%clk 0:00:03.3]} 41. Kxh1 {[%clk 0:00:09.7]} 41...
exd4 {[%clk 0:00:03.9]} 42. g8=Q {[%clk 0:00:09.7]} 42... d3 {[%clk 0:00:04.4]}
43. Qd8+ {[%clk 0:00:09.5]} 43... Kc6 {[%clk 0:00:04.3]} 44. Qxd7+ {[%clk
0:00:10.4]} 44... Kc5 {[%clk 0:00:04.5]} 45. Bd1 {[%clk 0:00:11]} 45... d2
{[%clk 0:00:04.7]} 46. Rc8+ {[%clk 0:00:11.3]} 46... Bc7 {[%clk 0:00:04.4]} 47.
Qxc7# {[%clk 0:00:11.6]} 1-0

[Event "*** Titled Tuesday Blitz"]
[Site "Chess.com"]
[Date "2020.12.29"]
[Round "3"]
[White "Mischuk_D"]
[Black "guillembaches"]
[Result "1-0"]
[WhiteElo "2662"]
[BlackElo "2462"]
[TimeControl "180+1"]
[EndTime "10:28:56 PST"]
[Termination "Mischuk_D won on time"]

1. e4 {[%clk 0:03:00.9]} 1... c5 {[%clk 0:03:00.1]} 2. Nf3 {[%clk 0:03:00.7]}
2... d6 {[%clk 0:03:00.6]} 3. d4 {[%clk 0:03:00.6]} 3... cxd4 {[%clk 0:03:01.2]}
4. Qxd4 {[%clk 0:03:00.5]} 4... Nc6 {[%clk 0:03:00.3]} 5. Qe3 {[%clk 0:03:00]}
5... Nf6 {[%clk 0:02:58.5]} 6. h3 {[%clk 0:02:57.5]} 6... e6 {[%clk 0:02:57.9]}
7. Be2 {[%clk 0:02:57.8]} 7... Be7 {[%clk 0:02:58.2]} 8. O-O {[%clk 0:02:58]}
8... O-O {[%clk 0:02:58.4]} 9. Rd1 {[%clk 0:02:58.1]} 9... Qc7 {[%clk
0:02:56.4]} 10. c4 {[%clk 0:02:58.2]} 10... b6 {[%clk 0:02:51.9]} 11. b3 {[%clk
0:02:58]} 11... Bb7 {[%clk 0:02:51.7]} 12. Bb2 {[%clk 0:02:58.5]} 12... Rad8
{[%clk 0:02:46.9]} 13. Nc3 {[%clk 0:02:58.8]} 13... Nd7 {[%clk 0:02:45]} 14.
Rac1 {[%clk 0:02:47.4]} 14... Qb8 {[%clk 0:02:44.9]} 15. Rd2 {[%clk 0:02:26.9]}
15... Rfe8 {[%clk 0:02:40.9]} 16. Rcd1 {[%clk 0:02:27]} 16... Nce5 {[%clk
0:02:37.9]} 17. Nd4 {[%clk 0:02:21.6]} 17... a6 {[%clk 0:02:31.4]} 18. Kh1
{[%clk 0:02:10.9]} 18... Qa8 {[%clk 0:02:29.2]} 19. f4 {[%clk 0:02:09.9]} 19...
Nc6 {[%clk 0:02:25.9]} 20. Nf3 {[%clk 0:02:08.1]} 20... Bf8 {[%clk 0:02:15.5]}
21. e5 {[%clk 0:02:02.3]} 21... Nc5 {[%clk 0:02:02.2]} 22. exd6 {[%clk 0:02:01]}
22... Rd7 {[%clk 0:01:56.3]} 23. Bf1 {[%clk 0:01:58.9]} 23... Red8 {[%clk
0:01:53.4]} 24. Ne5 {[%clk 0:01:16.8]} 24... Rxd6 {[%clk 0:01:46.7]} 25. Rxd6
{[%clk 0:01:02.7]} 25... Rxd6 {[%clk 0:01:41.8]} 26. Re1 {[%clk 0:00:55.6]}
26... Nxe5 {[%clk 0:01:30.3]} 27. fxe5 {[%clk 0:00:52]} 27... Rd8 {[%clk
0:01:16.2]} 28. b4 {[%clk 0:00:52.2]} 28... Nd7 {[%clk 0:01:11.2]} 29. a3 {[%clk
0:00:52.6]} 29... a5 {[%clk 0:01:06.3]} 30. b5 {[%clk 0:00:30]} 30... Bc5 {[%clk
0:00:57.4]} 31. Qf4 {[%clk 0:00:29.6]} 31... Nf8 {[%clk 0:00:54.2]} 32. Na4
{[%clk 0:00:27.3]} 32... Ng6 {[%clk 0:00:51.1]} 33. Qg3 {[%clk 0:00:25.4]} 33...
Rd2 {[%clk 0:00:45.1]} 34. Nxc5 {[%clk 0:00:18.6]} 34... bxc5 {[%clk 0:00:41.9]}
35. Bc1 {[%clk 0:00:16.7]} 35... Ra2 {[%clk 0:00:35.6]} 36. Rd1 {[%clk
0:00:16.7]} 36... h5 {[%clk 0:00:33.6]} 37. Kg1 {[%clk 0:00:08]} 37... h4 {[%clk
0:00:32.3]} 38. Qg5 {[%clk 0:00:08.5]} 38... Nf8 {[%clk 0:00:16.5]} 39. Be3
{[%clk 0:00:06.3]} 39... Rxa3 {[%clk 0:00:14.7]} 40. Bxc5 {[%clk 0:00:06.1]}
40... Qc8 {[%clk 0:00:11.6]} 41. Bxa3 {[%clk 0:00:05.6]} 41... Qe8 {[%clk
0:00:06]} 42. Bxf8 {[%clk 0:00:05.5]} 42... Qxf8 {[%clk 0:00:05.9]} 43. Rd8
{[%clk 0:00:05.8]} 1-0

[Event "*** Titled Tuesday Blitz"]
[Site "Chess.com"]
[Date "2020.12.29"]
[Round "3"]
[White "JoAttack"]
[Black "DinaBelenkaya"]
[Result "0-1"]
[WhiteElo "2206"]
[BlackElo "2381"]
[TimeControl "180+1"]
[EndTime "10:28:57 PST"]
[Termination "DinaBelenkaya won on time"]

1. d4 {[%clk 0:02:48.4]} 1... d5 {[%clk 0:02:59]} 2. c4 {[%clk 0:02:47.4]} 2...
dxc4 {[%clk 0:02:59.9]} 3. e4 {[%clk 0:02:45.6]} 3... Nf6 {[%clk 0:03:00.1]} 4.
Nc3 {[%clk 0:02:42.2]} 4... e5 {[%clk 0:02:57.7]} 5. d5 {[%clk 0:02:36.9]} 5...
c6 {[%clk 0:02:42.6]} 6. Bxc4 {[%clk 0:02:35]} 6... cxd5 {[%clk 0:02:41]} 7.
exd5 {[%clk 0:02:29.3]} 7... Bd6 {[%clk 0:02:32.2]} 8. Nge2 {[%clk 0:02:27.3]}
8... O-O {[%clk 0:02:31.4]} 9. O-O {[%clk 0:02:23.3]} 9... a6 {[%clk 0:02:28.7]}
10. a4 {[%clk 0:02:20.3]} 10... Nbd7 {[%clk 0:02:20.7]} 11. Ng3 {[%clk
0:02:15.5]} 11... Nb6 {[%clk 0:02:14.9]} 12. Bb3 {[%clk 0:02:14.1]} 12... Bb4
{[%clk 0:02:15]} 13. Bg5 {[%clk 0:02:09.2]} 13... h6 {[%clk 0:02:12]} 14. Bxf6
{[%clk 0:02:06.6]} 14... Qxf6 {[%clk 0:02:12.9]} 15. Re1 {[%clk 0:01:55.1]}
15... Bd7 {[%clk 0:01:38.4]} 16. Qe2 {[%clk 0:01:51.5]} 16... Rfe8 {[%clk
0:01:36.7]} 17. Qe3 {[%clk 0:01:49.1]} 17... Rac8 {[%clk 0:01:18]} 18. Nge4
{[%clk 0:01:32]} 18... Qd8 {[%clk 0:01:17.1]} 19. a5 {[%clk 0:01:24.6]} 19...
Nc4 {[%clk 0:01:16]} 20. Bxc4 {[%clk 0:01:15.3]} 20... Rxc4 {[%clk 0:01:16.9]}
21. Red1 {[%clk 0:01:06.7]} 21... Bf5 {[%clk 0:01:12.1]} 22. d6 {[%clk
0:01:01.6]} 22... Qd7 {[%clk 0:00:48.6]} 23. Rd5 {[%clk 0:00:49.7]} 23... f6
{[%clk 0:00:39]} 24. Rad1 {[%clk 0:00:45.9]} 24... Be6 {[%clk 0:00:39]} 25. Nc5
{[%clk 0:00:38.8]} 25... Bxc5 {[%clk 0:00:37.2]} 26. Rxc5 {[%clk 0:00:38.3]}
26... Rc8 {[%clk 0:00:36.8]} 27. Rxc8+ {[%clk 0:00:33.2]} 27... Qxc8 {[%clk
0:00:30.7]} 28. Qb6 {[%clk 0:00:31.4]} 28... Bd7 {[%clk 0:00:30.6]} 29. h3
{[%clk 0:00:27]} 29... Rc5 {[%clk 0:00:12.7]} 30. Nd5 {[%clk 0:00:22]} 30... Kf7
{[%clk 0:00:12.7]} 31. Nc7 {[%clk 0:00:19.8]} 31... Rc6 {[%clk 0:00:06.4]} 32.
Qb3+ {[%clk 0:00:15.4]} 32... Kf8 {[%clk 0:00:07]} 33. Qb4 {[%clk 0:00:10.3]}
33... g6 {[%clk 0:00:06.5]} 34. Kh2 {[%clk 0:00:06.1]} 34... Kg7 {[%clk
0:00:06.9]} 35. Rd2 {[%clk 0:00:05.2]} 35... Kf8 {[%clk 0:00:05.5]} 36. Nd5
{[%clk 0:00:05]} 36... Qb8 {[%clk 0:00:02.9]} 37. Nxf6 {[%clk 0:00:04]} 37...
Qc8 {[%clk 0:00:02.4]} 38. Nxd7+ {[%clk 0:00:02.9]} 38... Qxd7 {[%clk
0:00:03.3]} 39. Qe4 {[%clk 0:00:02]} 39... Rc5 {[%clk 0:00:01.9]} 40. Qf3+
{[%clk 0:00:01.2]} 40... Kg7 {[%clk 0:00:01.1]} 0-1